fUSD/lending_fUSD_20241224
["ID","MTS","AMOUNT","RATE_DAILY","PERIOD"]
[346489396,1735007445078,-500.0,0.00013972,2]
[346489398,1735007445088,-588.07,0.00013972,2]
[346489400,1735007445097,-500.0,0.00013972,2]
[346489402,1735007445107,-500.0,0.00013972,2]
[346489404,1735007445116,-500.0,0.00013972,2]
[346489406,1735007445125,-500.0,0.00013972,2]
[346489408,1735007445134,-534.44,0.00013972,2]
[346489410,1735007445144,-500.0,0.00013972,2]
[346489412,1735007445153,-500.0,0.00013972,2]
[346489414,1735007445162,-573.35,0.00013972,2]
[346489416,1735007445171,-500.0,0.00013972,2]
[346489418,1735007445180,-500.0,0.00013972,2]
[346489420,1735007445190,-500.0,0.00013972,2]
[346489422,1735007445199,-577.93022587,0.00013972,2]
[346489424,1735007445208,-500.0,0.00013972,2]
[346489426,1735007445217,-500.0,0.00013972,2]
[346489428,1735007445226,-500.0,0.00013972,2]
[346489430,1735007445238,-500.0,0.00013972,2]
[346489432,1735007445248,-500.0,0.00013972,2]
[346489434,1735007445257,-647.46,0.00013972,2]
[346489436,1735007445266,-500.0,0.00013972,2]
[346489438,1735007445275,-376.96306514,0.00013972,2]
[346489440,1735007445284,-500.0,0.00013972,2]
[346489442,1735007445294,-500.0,0.00013972,2]
[346489444,1735007445305,-500.0,0.00013972,2]
[346489446,1735007445314,-529.94721322,0.00013972,2]
[346489448,1735007445323,-500.0,0.00013972,2]
[346489450,1735007445333,-725.47,0.00013972,2]
[346489452,1735007445342,-500.0,0.00013972,2]
[346489454,1735007445352,-500.0,0.00013972,2]
[346489456,1735007445362,-290.86828103,0.00013972,2]
[346489458,1735007445371,-500.0,0.00013972,2]
[346489460,1735007445381,-500.0,0.00013972,2]
[346489463,1735007445391,-738.64,0.00013972,2]
[346489465,1735007445404,-500.0,0.00013972,2]
[346489467,1735007445414,-500.0,0.00013972,2]
[346489469,1735007445423,-783.25,0.00013972,2]
[346489471,1735007445432,-500.0,0.00013972,2]
[346489473,1735007445442,-500.0,0.00013972,2]
[346489475,1735007445451,-689.83,0.00013972,2]
[346489477,1735007445461,-500.0,0.00013972,2]
[346489478,1735007445470,-500.0,0.00013972,2]
[346489480,1735007445479,-553.21,0.00013972,2]
[346489483,1735007445489,-652.3,0.00013972,2]
[346489485,1735007445498,-500.0,0.00013972,2]
[346489486,1735007445508,-500.0,0.00013972,2]
[346489489,1735007445518,-1683.36,0.00013972,2]
[346489491,1735007445528,-608.70485648,0.00013972,2]
[346489493,1735007445537,-500.0,0.00013972,2]
[346489495,1735007445547,-500.0,0.00013972,2]
[346489497,1735007445556,-579.52,0.00013972,2]
[346489499,1735007445566,-622.4,0.00013972,2]
[346489501,1735007445575,-735.01,0.00013972,2]
[346489503,1735007445584,-234.42286992,0.00013972,2]
[346489505,1735007445593,-717.05,0.00013972,2]
[346489507,1735007445603,-756.85,0.00013972,2]
[346489509,1735007445612,-615.06,0.00013972,2]
[346489511,1735007445622,-768.22,0.00013972,2]
[346489513,1735007445631,-500.0,0.00013972,2]
[346489515,1735007445640,-500.0,0.00013972,2]
[346489517,1735007445649,-500.0,0.00013972,2]
[346489519,1735007445658,-1363.94,0.00013972,2]
[346489521,1735007445667,-500.0,0.00013972,2]
[346489523,1735007445677,-500.0,0.00013972,2]
[346489525,1735007445686,-634.43,0.00013972,2]
[346489527,1735007445694,-500.0,0.00013972,2]
[346489529,1735007445704,-1192.57,0.00013972,2]
[346489531,1735007445713,-500.0,0.00013972,2]
[346489533,1735007445722,-500.0,0.00013972,2]
[346489535,1735007445732,-1089.65,0.00013972,2]
[346489537,1735007445741,-500.0,0.00013972,2]
[346489539,1735007445751,-500.0,0.00013972,2]
[346489541,1735007445760,-500.0,0.00013972,2]
[346489543,1735007445768,-1043.27,0.00013972,2]
[346489545,1735007445777,-500.0,0.00013972,2]
[346489547,1735007445786,-500.0,0.00013972,2]
[346489549,1735007445796,-500.0,0.00013972,2]
[346489551,1735007445805,-500.0,0.00013972,2]
[346489553,1735007445814,-500.0,0.00013972,2]
[346489555,1735007445823,-500.0,0.00013972,2]
[346489557,1735007445832,-168.07787227,0.00013972,2]
[346489559,1735007445842,-500.0,0.00013972,2]
[346489561,1735007445851,-500.0,0.00013972,2]
[346489563,1735007445860,-500.0,0.00013972,2]
[346489565,1735007445869,-500.0,0.00013972,2]
[346489567,1735007445878,-693.79,0.00013972,2]
[346489569,1735007445887,-1426.47,0.00013972,2]
[346489571,1735007445896,-592.95,0.00013972,2]
[346489573,1735007445906,-500.0,0.00013972,2]
[346489575,1735007445915,-500.0,0.00013972,2]
[346489577,1735007445924,-1061.26,0.00013972,2]
[346489579,1735007445933,-868.59,0.00013972,2]
[346489581,1735007445942,-500.0,0.00013972,2]
[346489583,1735007445951,-500.0,0.00013972,2]
[346489585,1735007445961,-821.96,0.00013972,2]
[346489587,1735007445970,-678.27,0.00013972,2]
[346489589,1735007445980,-558.93,0.00013972,2]
[346489591,1735007445989,-500.0,0.00013972,2]
[346489593,1735007445998,-500.0,0.00013972,2]
[346489595,1735007446008,-500.0,0.00013972,2]
[346489597,1735007446017,-500.0,0.00013972,2]
[346489599,1735007446026,-500.0,0.00013972,2]
[346489601,1735007446035,-500.0,0.00013972,2]
[346489603,1735007446044,-598.82,0.00013972,2]
[346489605,1735007446053,-500.0,0.00013972,2]
[346489607,1735007446063,-535.47,0.00013972,2]
[346489609,1735007446072,-500.0,0.00013972,2]
[346489611,1735007446082,-500.0,0.00013972,2]
[346489613,1735007446091,-1017.52,0.00013972,2]
[346489614,1735007446100,-1099.52,0.00013972,2]
[346489616,1735007446109,-569.88,0.00013972,2]
[346489618,1735007446119,-1266.75,0.00013972,2]
[346489620,1735007446128,-500.0,0.00013972,2]
[346489622,1735007446138,-364.59333744,0.00013972,2]
[346489624,1735007446147,-500.0,0.00013972,2]
[346489650,1735007446432,-500.0,0.00013972,2]
[346489653,1735007446447,-894.34,0.00013972,2]
[346489656,1735007446456,-1090.38,0.00013972,2]
[346489659,1735007446465,-500.0,0.00013972,2]
[346489662,1735007446479,-500.0,0.00013972,2]
[346489665,1735007446489,-1064.1,0.00013972,2]
[346489668,1735007446501,-667.83,0.00013972,2]
[346489671,1735007446511,-201.57182234,0.00013972,2]
[346489674,1735007446520,-634.11,0.00013972,2]
[346489677,1735007446530,-500.0,0.00013972,2]
[346489680,1735007446542,-500.0,0.00013972,2]
[346489682,1735007446560,-848.75,0.00013972,2]
[346489684,1735007446569,-231.46779084,0.00013972,2]
[346489686,1735007446578,-593.38,0.00013972,2]
[346489688,1735007446587,-500.0,0.00013972,2]
[346489690,1735007446596,-617.7,0.00013972,2]
[346489692,1735007446606,-1042.67,0.00013972,2]
[346489694,1735007446615,-622.81,0.00013972,2]
[346489696,1735007446624,-592.82,0.00013972,2]
[346489698,1735007446633,-553.18,0.00013972,2]
[346489700,1735007446642,-500.0,0.00013972,2]
[346489702,1735007446651,-500.0,0.00013972,2]
[346489704,1735007446661,-500.0,0.00013972,2]
[346489706,1735007446670,-904.21,0.00013972,2]
[346489708,1735007446679,-614.04,0.00013972,2]
[346489710,1735007446688,-500.0,0.00013972,2]
[346489712,1735007446697,-500.0,0.00013972,2]
[346489714,1735007446707,-500.0,0.00013972,2]
[346489716,1735007446716,-500.0,0.00013972,2]
[346489718,1735007446725,-500.0,0.00013972,2]
[346489720,1735007446736,-500.0,0.00013972,2]
[346489722,1735007446747,-660.73,0.00013972,2]
[346489724,1735007446756,-500.0,0.00013972,2]
[346489726,1735007446766,-500.0,0.00013972,2]
[346489728,1735007446775,-668.21,0.00013972,2]
[346489730,1735007446785,-500.0,0.00013972,2]
[346489732,1735007446794,-669.58,0.00013972,2]
[346489734,1735007446803,-500.0,0.00013972,2]
[346489736,1735007446813,-1545.62,0.00013972,2]
[346489738,1735007446822,-994.78,0.00013972,2]
[346489740,1735007446831,-500.0,0.00013972,2]
[346489742,1735007446840,-814.77,0.00013972,2]
[346489744,1735007446850,-1452.44,0.00013972,2]
[346489746,1735007446859,-500.0,0.00013972,2]
[346489748,1735007446868,-500.0,0.00013972,2]
[346489750,1735007446877,-500.0,0.00013972,2]
[346489752,1735007446886,-600.04,0.00013972,2]
[346489754,1735007446895,-500.0,0.00013972,2]
[346489756,1735007446905,-500.0,0.00013972,2]
[346489758,1735007446914,-994.95,0.00013972,2]
[346489760,1735007446924,-1120.06,0.00013972,2]
[346489762,1735007446933,-684.05,0.00013972,2]
[346489764,1735007446943,-500.0,0.00013972,2]
[346489766,1735007446952,-500.0,0.00013972,2]
[346489768,1735007446962,-795.23,0.00013972,2]
[346489770,1735007446971,-500.0,0.00013972,2]
[346489772,1735007446981,-825.42,0.00013972,2]
[346489774,1735007446991,-1267.91,0.00013972,2]
[346489776,1735007447001,-500.0,0.00013972,2]
[346489778,1735007447010,-1564.05,0.00013972,2]
[346489780,1735007447019,-500.0,0.00013972,2]
[346489782,1735007447028,-1598.3,0.00013972,2]
[346489784,1735007447038,-500.0,0.00013972,2]
[346489786,1735007447047,-606.72,0.00013972,2]
[346489788,1735007447056,-581.65,0.00013972,2]
[346489791,1735007447066,-1196.67,0.00013972,2]
[346489793,1735007447075,-1141.42,0.00013972,2]
[346489795,1735007447084,-629.93,0.00013972,2]
[346489797,1735007447093,-1273.09,0.00013972,2]
[346489799,1735007447102,-744.09,0.00013972,2]
[346489800,1735007447112,-500.0,0.00013972,2]
[346489803,1735007447123,-500.0,0.00013972,2]
[346489805,1735007447132,-500.0,0.00013972,2]
[346489807,1735007447141,-500.0,0.00013972,2]
[346489809,1735007447150,-881.38,0.00013972,2]
[346489811,1735007447159,-524.99617924,0.00013972,2]
[346489813,1735007447169,-844.67,0.00013972,2]
[346489815,1735007447178,-500.0,0.00013972,2]
[346489817,1735007447187,-500.0,0.00013972,2]
[346489819,1735007447196,-967.85,0.00013972,2]
[346489821,1735007447205,-624.54,0.00013972,2]
[346489823,1735007447215,-500.0,0.00013972,2]
[346489825,1735007447224,-870.59,0.00013972,2]
[346489827,1735007447235,-500.0,0.00013972,2]
[346489829,1735007447244,-743.33,0.00013972,2]
[346489831,1735007447254,-500.0,0.00013972,2]
[346489833,1735007447263,-500.0,0.00013972,2]
[346489835,1735007447272,-619.7,0.00013972,2]
[346489837,1735007447281,-500.0,0.00013972,2]
[346489839,1735007447290,-589.61,0.00013972,2]
[346489841,1735007447299,-500.0,0.00013972,2]
[346489843,1735007447308,-500.0,0.00013972,2]
[346489845,1735007447317,-500.0,0.00013972,2]
[346489847,1735007447327,-500.0,0.00013972,2]
[346489849,1735007447336,-663.65,0.00013972,2]
[346489851,1735007447345,-846.64,0.00013972,2]
[346489853,1735007447354,-500.0,0.00013972,2]
[346489855,1735007447363,-500.0,0.00013972,2]
[346489857,1735007447372,-822.38,0.00013972,2]
[346489859,1735007447382,-545.12,0.00013972,2]
[346489861,1735007447391,-500.0,0.00013972,2]
[346489863,1735007447404,-857.8,0.00013972,2]
[346489865,1735007447414,-500.0,0.00013972,2]
[346489867,1735007447423,-628.91,0.00013972,2]
[346489869,1735007447433,-500.03,0.00013972,2]
[346489871,1735007447443,-500.0,0.00013972,2]
[346489873,1735007447452,-500.0,0.00013972,2]
[346489875,1735007447461,-560.21,0.00013972,2]
[346489877,1735007447470,-578.3,0.00013972,2]
[346489879,1735007447480,-664.63,0.00013972,2]
[346489882,1735007447494,-500.0,0.00013972,2]
[346489884,1735007447503,-500.0,0.00013972,2]
[346489886,1735007447512,-1621.52,0.00013972,2]
[346489888,1735007447522,-500.0,0.00013972,2]
[346489890,1735007447531,-618.84,0.00013972,2]
[346489892,1735007447540,-500.0,0.00013972,2]
[346489894,1735007447549,-811.41,0.00013972,2]
[346489896,1735007447559,-862.2,0.00013972,2]
[346489898,1735007447568,-831.51,0.00013972,2]
[346489900,1735007447577,-500.0,0.00013972,2]
[346489902,1735007447586,-500.0,0.00013972,2]
[346489904,1735007447596,-500.0,0.00013972,2]
[346489906,1735007447605,-840.98,0.00013972,2]
[346489908,1735007447615,-500.0,0.00013972,2]
[346489910,1735007447624,-710.37,0.00013972,2]
[346489912,1735007447634,-500.0,0.00013972,2]
[346489914,1735007447643,-511.09,0.00013972,2]
[346489916,1735007447652,-500.0,0.00013972,2]
[346489918,1735007447662,-524.5063745,0.00013972,2]
[346489920,1735007447671,-500.0,0.00013972,2]
[346489922,1735007447681,-1144.42,0.00013972,2]
[346489924,1735007447690,-500.0,0.00013972,2]
[346489926,1735007447699,-675.71,0.00013972,2]
[346489928,1735007447708,-1450.49,0.00013972,2]
[346489930,1735007447718,-915.2,0.00013972,2]
[346489932,1735007447727,-521.96,0.00013972,2]
[346489934,1735007447739,-608.78,0.00013972,2]
[346489936,1735007447748,-652.93,0.00013972,2]
[346489938,1735007447757,-759.0,0.00013972,2]
[346489940,1735007447767,-583.2,0.00013972,2]
[346489942,1735007447776,-679.37,0.00013972,2]
[346489944,1735007447785,-569.4,0.00013972,2]
[346489946,1735007447795,-693.77,0.00013972,2]
[346489948,1735007447804,-701.37,0.00013972,2]
[346489950,1735007447814,-500.0,0.00013972,2]
[346489952,1735007447823,-1679.98,0.00013972,2]
[346489954,1735007447834,-500.0,0.00013972,2]
[346489956,1735007447843,-502.12,0.00013972,2]
[346489958,1735007447852,-524.76,0.00013972,2]
[346489960,1735007447861,-500.0,0.00013972,2]
[346489962,1735007447870,-1154.4,0.00013972,2]
[346489964,1735007447879,-709.56,0.00013972,2]
[346489966,1735007447888,-500.0,0.00013972,2]
[346489968,1735007447897,-1301.45,0.00013972,2]
[346489970,1735007447906,-500.0,0.00013972,2]
[346489972,1735007447916,-500.0,0.00013972,2]
[346489974,1735007447926,-500.0,0.00013972,2]
[346489976,1735007447936,-611.77,0.00013972,2]
[346489978,1735007447945,-963.98,0.00013972,2]
[346489980,1735007447954,-500.0,0.00013972,2]
[346489982,1735007447964,-7171.2,0.00013972,2]
[346489984,1735007447974,-710.65,0.00013972,2]
[346489986,1735007447984,-618.56,0.00013972,2]
[346489988,1735007447994,-500.0,0.00013972,2]
[346489991,1735007448003,-500.0,0.00013972,2]
[346489993,1735007448013,-726.77,0.00013972,2]
[346489995,1735007448023,-500.0,0.00013972,2]
[346489997,1735007448032,-500.0,0.00013972,2]
[346489999,1735007448042,-669.37,0.00013972,2]
[346490001,1735007448051,-500.0,0.00013972,2]
[346490003,1735007448061,-500.0,0.00013972,2]
[346490005,1735007448070,-500.0,0.00013972,2]
[346490007,1735007448080,-1646.6,0.00013972,2]
[346490009,1735007448089,-768.51,0.00013972,2]
[346490010,1735007448098,-954.73,0.00013972,2]
[346490013,1735007448108,-7137.83,0.00013972,2]
[346490015,1735007448117,-501.32,0.00013972,2]
[346490017,1735007448126,-500.0,0.00013972,2]
[346490018,1735007448136,-790.41,0.00013972,2]
[346490020,1735007448145,-1709.11,0.00013972,2]
[346490022,1735007448154,-899.06,0.00013972,2]
[346490024,1735007448164,-1723.42,0.00013972,2]
[346490026,1735007448174,-630.14,0.00013972,2]
[346490029,1735007448184,-500.0,0.00013972,2]
[346490031,1735007448194,-2292.47,0.00013972,2]
[346490033,1735007448203,-158.80684938,0.00013972,2]
[346490035,1735007448213,-521.93,0.00013972,2]
[346490037,1735007448222,-500.0,0.00013972,2]
[346490038,1735007448232,-500.0,0.00013972,2]
[346490040,1735007448241,-4440.78,0.00013972,2]
[346490042,1735007448251,-1044.76,0.00013972,2]
[346490043,1735007448261,-500.0,0.00013972,2]
[346490044,1735007448271,-1038.34,0.00013972,2]
[346490045,1735007448281,-4785.48,0.00013972,2]
[346490046,1735007448291,-821.86,0.00013972,2]
[346490047,1735007448301,-500.0,0.00013972,2]
[346490048,1735007448311,-620.5,0.00013972,2]
[346490049,1735007448321,-1762.88,0.00013972,2]
[346490050,1735007448331,-532.46,0.00013972,2]
[346490051,1735007448341,-500.0,0.00013972,2]
[346490052,1735007448350,-1236.75,0.00013972,2]
[346490054,1735007448359,-3288.82,0.00013972,2]
[346490056,1735007448368,-500.0,0.00013972,2]
[346490058,1735007448379,-7839.9,0.00013972,2]
[346490060,1735007448388,-720.23,0.00013972,2]
[346490062,1735007448400,-500.0,0.00013972,2]
[346490064,1735007448410,-996.23,0.00013972,2]
[346490066,1735007448420,-727.08,0.00013972,2]
[346490068,1735007448430,-500.0,0.00013972,2]
[346490070,1735007448442,-770.83,0.00013972,2]
[346490072,1735007448452,-500.0,0.00013972,2]
[346490074,1735007448463,-1040.44,0.00013972,2]
[346490076,1735007448473,-3105.17,0.00013972,2]
[346490078,1735007448485,-3382.29,0.00013972,2]
[346490080,1735007448495,-685.18,0.00013972,2]
[346490082,1735007448505,-500.0,0.00013972,2]
[346490084,1735007448515,-718.55,0.00013972,2]
[346490086,1735007448525,-1300.07,0.00013972,2]
[346490089,1735007448535,-500.0,0.00013972,2]
[346490090,1735007448546,-500.0,0.00013972,2]
[346490092,1735007448556,-2175.65,0.00013972,2]
[346490094,1735007448566,-1337.16,0.00013972,2]
[346490097,1735007448577,-547.29,0.00013972,2]
[346490099,1735007448588,-1260.32,0.00013972,2]
[346490101,1735007448598,-1186.31,0.00013972,2]
[346490102,1735007448608,-703.31,0.00013972,2]
[346490104,1735007448618,-790.65,0.00013972,2]
[346490106,1735007448628,-500.0,0.00013972,2]
[346490108,1735007448639,-2693.62,0.00013972,2]
[346490110,1735007448649,-2195.68,0.00013972,2]
[346490112,1735007448659,-2599.99,0.00013972,2]
[346490114,1735007448669,-500.0,0.00013972,2]
[346490117,1735007448679,-5027.26,0.00013972,2]
[346490118,1735007448689,-500.0,0.00013972,2]
[346490121,1735007448699,-500.0,0.00013972,2]
[346490123,1735007448710,-521.39641837,0.00013972,2]
[346490124,1735007448725,-18698.72,0.00013972,2]
[346490127,1735007448745,-1181.22,0.00013972,2]
[346490129,1735007448755,-970.77,0.00013972,2]
[346490131,1735007448764,-505.86,0.00013972,2]
[346490133,1735007448774,-506.9,0.00013972,2]
[346490135,1735007448783,-500.0,0.00013972,2]
[346490137,1735007448793,-500.0,0.00013972,2]
[346490139,1735007448804,-776.44,0.00013972,2]
[346490141,1735007448813,-818.27,0.00013972,2]
[346490143,1735007448823,-644.59,0.00013972,2]
[346490152,1735007448905,-509.35267877,0.00013972,2]
[346490154,1735007448915,-1647.02,0.00013972,2]
[346490156,1735007448925,-500.0,0.00013972,2]
[346490158,1735007448934,-992.28,0.00013972,2]
[346490160,1735007448944,-4092.33,0.00013972,2]
[346490162,1735007448954,-976.56,0.00013972,2]
[346490164,1735007448963,-1979.42,0.00013972,2]
[346490166,1735007448973,-2148.61,0.00013972,2]
[346490168,1735007448982,-919.1,0.00013972,2]
[346490170,1735007448992,-1423.24,0.00013972,2]
[346490172,1735007449002,-500.0,0.00013972,2]
[346490174,1735007449012,-1852.35,0.00013972,2]
[346490176,1735007449022,-652.86,0.00013972,2]
[346490178,1735007449030,-705.61,0.00013972,2]
[346490180,1735007449039,-1677.16,0.00013972,2]
[346490182,1735007449049,-774.41,0.00013972,2]
[346490183,1735007449058,-1360.94,0.00013972,2]
[346490185,1735007449067,-500.0,0.00013972,2]
[346490187,1735007449077,-5795.29,0.00013972,2]
[346490189,1735007449086,-3363.54,0.00013972,2]
[346490191,1735007449096,-1300.57,0.00013972,2]
[346490193,1735007449105,-1505.26,0.00013972,2]
[346490195,1735007449114,-1701.58,0.00013972,2]
[346490197,1735007449124,-600.17,0.00013972,2]
[346490199,1735007449133,-1373.23,0.00013972,2]
[346490201,1735007449143,-500.0,0.00013972,2]
[346490203,1735007449152,-601.28,0.00013972,2]
[346490205,1735007449162,-1001.08,0.00013972,2]
[346490207,1735007449171,-1121.55,0.00013972,2]
[346490209,1735007449180,-10929.52,0.00013972,2]
[346490211,1735007449190,-1558.76,0.00013972,2]
[346490213,1735007449199,-2563.46,0.00013972,2]
[346490215,1735007449209,-182.63150588,0.00013972,2]
[346490217,1735007449218,-2226.51,0.00013972,2]
[346490219,1735007449228,-500.0,0.00013972,2]
[346490221,1735007449239,-950.58,0.00013972,2]
[346490223,1735007449248,-4072.19,0.00013972,2]
[346490225,1735007449257,-1166.78,0.00013972,2]
[346490227,1735007449267,-898.08,0.00013972,2]
[346490229,1735007449277,-500.0,0.00013972,2]
[346490231,1735007449286,-600.61,0.00013972,2]
[346490233,1735007449296,-1152.46,0.00013972,2]
[346490235,1735007449305,-2232.16,0.00013972,2]
[346490237,1735007449315,-4521.11,0.00013972,2]
[346490239,1735007449324,-500.0,0.00013972,2]
[346490241,1735007449333,-767.98,0.00013972,2]
[346490243,1735007449343,-631.49,0.00013972,2]
[346490245,1735007449354,-4342.25,0.00013972,2]
[346490247,1735007449364,-1702.78,0.00013972,2]
[346490249,1735007449373,-729.56,0.00013972,2]
[346490251,1735007449383,-4520.53,0.00013972,2]
[346490252,1735007449393,-500.0,0.00013972,2]
[346490254,1735007449411,-12876.12,0.00013972,2]
[346490256,1735007449420,-963.49,0.00013972,2]
[346490258,1735007449430,-10210.08,0.00013972,2]
[346490260,1735007449440,-795.43,0.00013972,2]
[346490262,1735007449450,-500.0,0.00013972,2]
[346490264,1735007449461,-500.0,0.00013972,2]
[346490266,1735007449471,-1219.46,0.00013972,2]
[346490268,1735007449482,-1923.15,0.00013972,2]
[346490270,1735007449492,-2209.69,0.00013972,2]
[346490272,1735007449502,-2586.86,0.00013972,2]
[346490274,1735007449512,-248.14451536,0.00013972,2]
[346490276,1735007449522,-707.35,0.00013972,2]
[346490278,1735007449532,-3929.42,0.00013972,2]
[346490281,1735007449542,-1741.33,0.00013972,2]
[346490283,1735007449552,-500.0,0.00013972,2]
[346490284,1735007449562,-833.25,0.00013972,2]
[346490286,1735007449571,-1443.18,0.00013972,2]
[346490288,1735007449581,-500.0,0.00013972,2]
[346490290,1735007449591,-1311.55,0.00013972,2]
[346490292,1735007449601,-1736.83,0.00013972,2]
[346490294,1735007449611,-4560.51,0.00013972,2]
[346490296,1735007449621,-9665.26,0.00013972,2]
[346490298,1735007449630,-2582.87,0.00013972,2]
[346490300,1735007449640,-5208.16,0.00013972,2]
[346490302,1735007449649,-851.27,0.00013972,2]
[346490304,1735007449659,-508.44,0.00013972,2]
[346490307,1735007449669,-2449.11,0.00013972,2]
[346490308,1735007449679,-1405.55,0.00013972,2]
[346490311,1735007449688,-500.0,0.00013972,2]
[346490312,1735007449698,-2273.62,0.00013972,2]
[346490314,1735007449707,-2640.52,0.00013972,2]
[346490316,1735007449717,-3017.77,0.00013972,2]
[346490318,1735007449727,-500.0,0.00013972,2]
[346490320,1735007449738,-622.94,0.00013972,2]
[346490322,1735007449747,-2612.67,0.00013972,2]
[346490324,1735007449757,-2189.27,0.00013972,2]
[346490326,1735007449767,-151.0,0.00013972,2]
[346490328,1735007449776,-151.0,0.00013972,2]
[346490331,1735007449786,-941.44,0.00013972,2]
[346490332,1735007449796,-151.0,0.00013972,2]
[346490335,1735007449805,-151.0,0.00013972,2]
[346490337,1735007449815,-457.37847944,0.00013972,2]
[346490338,1735007449826,-2315.01,0.00013972,2]
[346490340,1735007449835,-151.0,0.00013972,2]
[346490342,1735007449845,-601.31,0.00013972,2]
[346490344,1735007449855,-151.0,0.00013972,2]
[346490347,1735007449865,-10263.48,0.00013972,2]
[346490349,1735007449874,-151.0,0.00013972,2]
[346490350,1735007449883,-712.83,0.00013972,2]
[346490352,1735007449893,-276.333053,0.00013972,2]
[346490354,1735007449903,-1007.54,0.00013972,2]
[346490356,1735007449912,-10922.53,0.00013972,2]
[346490359,1735007449921,-7363.44,0.00013972,2]
[346490361,1735007449931,-473.92342386,0.00013972,2]
[346490362,1735007449941,-500.0,0.00013972,2]
[346490365,1735007449950,-688.94,0.00013972,2]
[346490366,1735007449959,-1032.65,0.00013972,2]
[346490369,1735007449969,-504.12160632,0.00013972,2]
[346490371,1735007449978,-4342.99,0.00013972,2]
[346490373,1735007449989,-10449.35,0.00013972,2]
[346490375,1735007449998,-588.1,0.00013972,2]
[346490377,1735007450007,-3434.19,0.00013972,2]
[346490379,1735007450017,-500.0,0.00013972,2]
[346490380,1735007450026,-3118.55,0.00013972,2]
[346490382,1735007450036,-1506.32,0.00013972,2]
[346490384,1735007450045,-4466.69,0.00013972,2]
[346490386,1735007450054,-21837.29,0.00013972,2]
[346490388,1735007450064,-551.66,0.00013972,2]
[346490390,1735007450073,-1631.28,0.00013972,2]
[346490392,1735007450082,-6544.83,0.00013972,2]
[346490394,1735007450092,-652.5,0.00013972,2]
[346490397,1735007450101,-512.94,0.00013972,2]
[346490398,1735007450111,-770.65,0.00013972,2]
[346490399,1735007450120,-1839.01,0.00013972,2]
[346490400,1735007450130,-1031.69,0.00013972,2]
[346490401,1735007450139,-26195.86,0.00013972,2]
[346490402,1735007450148,-904.49,0.00013972,2]
[346490403,1735007450157,-535.15,0.00013972,2]
[346490404,1735007450167,-500.0,0.00013972,2]
[346490405,1735007450176,-2126.8,0.00013972,2]
[346490406,1735007450186,-5169.23,0.00013972,2]
[346490407,1735007450195,-632.58645236,0.00013972,2]
[346490409,1735007450204,-500.0,0.00013972,2]
[346490411,1735007450214,-815.25,0.00013972,2]
[346490412,1735007450224,-2728.18,0.00013972,2]
[346490414,1735007450235,-608.77,0.00013972,2]
[346490416,1735007450245,-831.94,0.00013972,2]